[Event "*** Titled Tuesday 3|2 Blitz"]
[Site "Chess.com"]
[Date "2016.07.05"]
[Round "6"]
[White "Er_is_geen_hoop_meer"]
[Black "rikyshi"]
[Result "1-0"]
[WhiteElo "2341"]
[BlackElo "2116"]
[TimeControl "180+2"]
[EndTime "12:10:38 PDT"]
[Termination "Er_is_geen_hoop_meer won by resignation"]

1. b4 {[%clk 0:02:58.2]} 1... d5 {[%clk 0:02:47.9]} 2. Bb2 {[%clk 0:02:58.9]}
2... e6 {[%clk 0:02:48.8]} 3. e3 {[%clk 0:02:59.2]} 3... Nf6 {[%clk 0:02:48.4]}
4. b5 {[%clk 0:03:00.4]} 4... c5 {[%clk 0:02:47.8]} 5. c4 {[%clk 0:03:01]} 5...
Be7 {[%clk 0:02:47.9]} 6. g4 {[%clk 0:03:00.6]} 6... O-O {[%clk 0:02:45.9]} 7.
g5 {[%clk 0:03:01.4]} 7... Ne4 {[%clk 0:02:45.6]} 8. d3 {[%clk 0:03:02.4]} 8...
Nd6 {[%clk 0:02:44.3]} 9. h4 {[%clk 0:03:02.4]} 9... f6 {[%clk 0:02:43.8]} 10.
g6 {[%clk 0:02:59.3]} 10... hxg6 {[%clk 0:02:42.9]} 11. h5 {[%clk 0:03:00.2]}
11... g5 {[%clk 0:02:39.1]} 12. h6 {[%clk 0:03:01.2]} 12... g6 {[%clk
0:02:40.1]} 13. h7+ {[%clk 0:03:02.7]} 13... Kh8 {[%clk 0:02:41.2]} 14. Nf3
{[%clk 0:03:03.7]} 14... Rf7 {[%clk 0:02:42.1]} 15. Nxg5 {[%clk 0:03:04.3]}
15... Rg7 {[%clk 0:02:42]} 16. Bh3 {[%clk 0:02:57.1]} 16... e5 {[%clk
0:02:41.3]} 17. Ne6 {[%clk 0:02:55.1]} 17... Bxe6 {[%clk 0:02:41.5]} 18. Bxe6
{[%clk 0:02:57]} 18... Rxh7 {[%clk 0:02:42.2]} 19. Rxh7+ {[%clk 0:02:56.1]}
19... Kxh7 {[%clk 0:02:44.1]} 20. Bxd5 {[%clk 0:02:57.5]} 20... Nd7 {[%clk
0:02:42.1]} 21. f4 {[%clk 0:02:58.6]} 21... Qf8 {[%clk 0:02:37.4]} 22. Qg4
{[%clk 0:02:58.6]} 22... Rd8 {[%clk 0:02:35.8]} 23. Nd2 {[%clk 0:02:57.5]} 23...
f5 {[%clk 0:02:30.9]} 24. Qh3+ {[%clk 0:02:56.9]} 24... Qh6 {[%clk 0:02:31.1]}
25. Qxh6+ {[%clk 0:02:57.9]} 25... Kxh6 {[%clk 0:02:32.3]} 26. fxe5 {[%clk
0:02:59.8]} 26... Bh4+ {[%clk 0:02:27.8]} 27. Ke2 {[%clk 0:02:59.9]} 27... Ne8
{[%clk 0:02:26.1]} 28. Rh1 {[%clk 0:03:00.6]} 28... g5 {[%clk 0:02:27.3]} 29.
Nf3 {[%clk 0:03:01]} 29... Nb6 {[%clk 0:02:26.7]} 30. Bxb7 {[%clk 0:03:01.7]}
30... Nc7 {[%clk 0:02:20.5]} 31. Nxh4 {[%clk 0:02:58.7]} 31... gxh4 {[%clk
0:02:21.1]} 32. Rxh4+ {[%clk 0:03:00.6]} 32... Kg5 {[%clk 0:02:21.6]} 33. Rh7
{[%clk 0:03:01.9]} 33... Ne6 {[%clk 0:02:21.2]} 34. Bf3 {[%clk 0:03:02.7]} 34...
f4 {[%clk 0:02:18.7]} 35. Re7 {[%clk 0:03:01.2]} 35... Nf8 {[%clk 0:02:14.2]}
36. exf4+ {[%clk 0:02:59.7]} 36... Kxf4 {[%clk 0:02:16.1]} 37. Rf7+ {[%clk
0:03:00.6]} 37... Kg3 {[%clk 0:02:15.6]} 38. Rxa7 {[%clk 0:02:57.7]} 38... Ne6
{[%clk 0:02:16.1]} 39. Re7 {[%clk 0:02:56.6]} 39... Nf4+ {[%clk 0:02:16.8]} 40.
Ke3 {[%clk 0:02:55.3]} 40... Rxd3+ {[%clk 0:02:16.6]} 41. Ke4 {[%clk 0:02:57]}
41... Rd2 {[%clk 0:02:16]} 42. Rg7+ {[%clk 0:02:57.2]} 42... Kh4 {[%clk
0:02:16.8]} 43. Kxf4 {[%clk 0:02:55.6]} 1-0

[Event "*** Titled Tuesday 3|2 Blitz"]
[Site "Chess.com"]
[Date "2016.07.05"]
[Round "6"]
[White "alturas_pacificas"]
[Black "Ginger_GM"]
[Result "0-1"]
[WhiteElo "2155"]
[BlackElo "2496"]
[TimeControl "180+2"]
[EndTime "12:10:42 PDT"]
[Termination "Ginger_GM won by resignation"]

1. d4 {[%clk 0:03:01.9]} 1... Nf6 {[%clk 0:02:59.6]} 2. Bf4 {[%clk 0:03:02.6]}
2... Rg8 {[%clk 0:02:59.2]} 3. h3 {[%clk 0:02:44.3]} 3... g5 {[%clk 0:02:59.6]}
4. Bh2 {[%clk 0:02:45.2]} 4... d6 {[%clk 0:03:00.5]} 5. Nc3 {[%clk 0:02:45.3]}
5... Bf5 {[%clk 0:03:00.4]} 6. f3 {[%clk 0:02:43.6]} 6... Bg6 {[%clk 0:02:59.7]}
7. e4 {[%clk 0:02:44.4]} 7... Nbd7 {[%clk 0:03:00.7]} 8. Bc4 {[%clk 0:02:43.2]}
8... e6 {[%clk 0:02:58.5]} 9. Nge2 {[%clk 0:02:43.6]} 9... c6 {[%clk 0:02:54.4]}
10. a4 {[%clk 0:02:43.6]} 10... a5 {[%clk 0:02:54]} 11. Qd2 {[%clk 0:02:43.1]}
11... d5 {[%clk 0:02:52.8]} 12. Bd3 {[%clk 0:02:42.4]} 12... Bb4 {[%clk
0:02:51.5]} 13. O-O {[%clk 0:02:39.5]} 13... dxe4 {[%clk 0:02:49]} 14. fxe4
{[%clk 0:02:40.1]} 14... Bxe4 {[%clk 0:02:46.8]} 15. Bxe4 {[%clk 0:02:19.8]}
15... Nxe4 {[%clk 0:02:47.1]} 16. Qe3 {[%clk 0:02:21.4]} 16... Nef6 {[%clk
0:02:38.4]} 17. Kh1 {[%clk 0:02:11.7]} 17... Qe7 {[%clk 0:02:36.6]} 18. Ne4
{[%clk 0:02:00.6]} 18... Nxe4 {[%clk 0:02:36.1]} 19. Qxe4 {[%clk 0:02:02.5]}
19... O-O-O {[%clk 0:02:31.9]} 20. c3 {[%clk 0:01:57.7]} 20... f5 {[%clk
0:02:26.8]} 21. Qb1 {[%clk 0:01:27.2]} 21... Bd6 {[%clk 0:02:27.6]} 22. b4
{[%clk 0:01:28.2]} 22... Bxh2 {[%clk 0:02:27.3]} 23. Kxh2 {[%clk 0:01:29.4]}
23... axb4 {[%clk 0:02:24.8]} 24. cxb4 {[%clk 0:01:29.7]} 24... g4 {[%clk
0:02:25.5]} 25. b5 {[%clk 0:01:25]} 25... Qd6+ {[%clk 0:02:26.4]} 26. Kh1 {[%clk
0:01:23.8]} 26... gxh3 {[%clk 0:02:26.9]} 27. g3 {[%clk 0:01:22.5]} 27... Qd5+
{[%clk 0:02:27.2]} 0-1

[Event "*** Titled Tuesday 3|2 Blitz"]
[Site "Chess.com"]
[Date "2016.07.05"]
[Round "6"]
[White "rithwik2002"]
[Black "LyonBeast"]
[Result "0-1"]
[WhiteElo "1918"]
[BlackElo "2728"]
[TimeControl "180+2"]
[EndTime "12:11:02 PDT"]
[Termination "LyonBeast won by resignation"]

1. d4 {[%clk 0:03:01.9]} 1... g6 {[%clk 0:02:58.6]} 2. c4 {[%clk 0:03:01.7]}
2... Bg7 {[%clk 0:03:00]} 3. f3 {[%clk 0:03:02.6]} 3... d5 {[%clk 0:02:44.5]} 4.
cxd5 {[%clk 0:03:02.9]} 4... Qxd5 {[%clk 0:02:42.1]} 5. e3 {[%clk 0:02:53.5]}
5... Nf6 {[%clk 0:02:30.9]} 6. Nc3 {[%clk 0:02:52.7]} 6... Qa5 {[%clk
0:02:25.8]} 7. Bc4 {[%clk 0:02:37.5]} 7... O-O {[%clk 0:02:25]} 8. Bd2 {[%clk
0:02:36.8]} 8... c6 {[%clk 0:02:16.2]} 9. Nge2 {[%clk 0:02:16.2]} 9... e5 {[%clk
0:02:15.3]} 10. Nd5 {[%clk 0:01:54.6]} 10... Qd8 {[%clk 0:02:14.9]} 11. Nxf6+
{[%clk 0:01:51.7]} 11... Qxf6 {[%clk 0:02:16.8]} 12. dxe5 {[%clk 0:01:51]} 12...
Qh4+ {[%clk 0:02:17.6]} 13. Ng3 {[%clk 0:01:32.5]} 13... Qxc4 {[%clk 0:02:19.5]}
14. Bc3 {[%clk 0:01:33.2]} 14... Na6 {[%clk 0:02:19.2]} 15. Qe2 {[%clk
0:01:33.9]} 15... Qxe2+ {[%clk 0:02:19.3]} 16. Kxe2 {[%clk 0:01:35.8]} 16... Be6
{[%clk 0:02:20.8]} 17. b3 {[%clk 0:01:34.2]} 17... Rad8 {[%clk 0:02:22.7]} 18.
Rad1 {[%clk 0:01:35.1]} 18... Nc7 {[%clk 0:02:18.6]} 19. Ne4 {[%clk 0:01:33.8]}
19... Nd5 {[%clk 0:02:18.6]} 20. Bb2 {[%clk 0:01:32.3]} 20... b6 {[%clk
0:02:15.4]} 21. g4 {[%clk 0:01:13.1]} 21... Rd7 {[%clk 0:02:09.1]} 22. f4 {[%clk
0:01:03.3]} 22... Bxg4+ {[%clk 0:02:08.3]} 0-1

[Event "*** Titled Tuesday 3|2 Blitz"]
[Site "Chess.com"]
[Date "2016.07.05"]
[Round "6"]
[White "LazovT"]
[Black "Zhani-Z"]
[Result "1/2-1/2"]
[WhiteElo "2311"]
[BlackElo "2271"]
[TimeControl "180+2"]
[EndTime "12:11:06 PDT"]
[Termination "Game drawn by agreement"]

1. e4 {[%clk 0:03:01.9]} 1... e5 {[%clk 0:03:00.8]} 2. Nf3 {[%clk 0:03:01.5]}
2... Nc6 {[%clk 0:03:02]} 3. d4 {[%clk 0:03:01.5]} 3... exd4 {[%clk 0:03:02.3]}
4. Nxd4 {[%clk 0:03:03.4]} 4... Bb4+ {[%clk 0:03:03.6]} 5. c3 {[%clk 0:03:03.2]}
5... Bc5 {[%clk 0:03:05]} 6. Be3 {[%clk 0:03:02.9]} 6... Bb6 {[%clk 0:03:05.4]}
7. Nd2 {[%clk 0:02:59.7]} 7... Nf6 {[%clk 0:03:04]} 8. Bd3 {[%clk 0:02:59.1]}
8... O-O {[%clk 0:03:04.5]} 9. O-O {[%clk 0:03:00.2]} 9... Ne5 {[%clk
0:02:53.6]} 10. Bc2 {[%clk 0:03:00.3]} 10... d5 {[%clk 0:02:54.8]} 11. exd5
{[%clk 0:02:47.2]} 11... Qxd5 {[%clk 0:02:45.8]} 12. h3 {[%clk 0:02:40.9]} 12...
Ng6 {[%clk 0:02:36.5]} 13. Bb3 {[%clk 0:02:37.7]} 13... Qh5 {[%clk 0:02:22.8]}
14. Qxh5 {[%clk 0:02:33.5]} 14... Nxh5 {[%clk 0:02:23.7]} 15. N2f3 {[%clk
0:02:34.3]} 15... Bd7 {[%clk 0:02:06]} 16. Rad1 {[%clk 0:02:25.6]} 16... h6
{[%clk 0:01:59.6]} 17. Rfe1 {[%clk 0:02:22.7]} 17... Rad8 {[%clk 0:01:56.1]} 18.
Nc2 {[%clk 0:01:57.5]} 18... Nf6 {[%clk 0:01:42.4]} 19. Bxb6 {[%clk 0:01:46.4]}
19... axb6 {[%clk 0:01:43.1]} 20. Ne5 {[%clk 0:01:47.9]} 20... Nxe5 {[%clk
0:01:36.2]} 21. Rxe5 {[%clk 0:01:49.8]} 21... Rfe8 {[%clk 0:01:36]} 22. Rxe8+
{[%clk 0:01:48.6]} 22... Rxe8 {[%clk 0:01:35.9]} 23. Ne3 {[%clk 0:01:47.6]}
23... Kf8 {[%clk 0:01:33.4]} 1/2-1/2

[Event "*** Titled Tuesday 3|2 Blitz"]
[Site "Chess.com"]
[Date "2016.07.05"]
[Round "6"]
[White "josiwales"]
[Black "akinov-akinseye"]
[Result "0-1"]
[WhiteElo "2088"]
[BlackElo "1840"]
[TimeControl "180+2"]
[EndTime "12:11:08 PDT"]
[Termination "akinov-akinseye won by resignation"]

1. e4 {[%clk 0:03:01.9]} 1... d5 {[%clk 0:02:59.7]} 2. exd5 {[%clk 0:03:02.5]}
2... Qxd5 {[%clk 0:03:00.7]} 3. Nc3 {[%clk 0:03:02.8]} 3... Qd6 {[%clk
0:03:02.3]} 4. d4 {[%clk 0:03:02.2]} 4... Nf6 {[%clk 0:03:03.7]} 5. Nf3 {[%clk
0:03:03.4]} 5... g6 {[%clk 0:03:05.2]} 6. Bc4 {[%clk 0:03:04.3]} 6... Bg7 {[%clk
0:03:06.5]} 7. O-O {[%clk 0:03:05.8]} 7... O-O {[%clk 0:03:08]} 8. Be3 {[%clk
0:03:04]} 8... a6 {[%clk 0:03:09.2]} 9. a4 {[%clk 0:03:01.8]} 9... b6 {[%clk
0:03:07.5]} 10. h3 {[%clk 0:03:00.5]} 10... Bb7 {[%clk 0:03:08.4]} 11. Ne5
{[%clk 0:02:54.3]} 11... Nc6 {[%clk 0:03:08]} 12. f4 {[%clk 0:02:51.5]} 12...
Rad8 {[%clk 0:03:05.6]} 13. Ne2 {[%clk 0:02:41.4]} 13... Na5 {[%clk 0:02:59.5]}
14. Ba2 {[%clk 0:02:36.4]} 14... Nd5 {[%clk 0:02:56]} 15. Bf2 {[%clk 0:02:27.5]}
15... Nb4 {[%clk 0:02:53.9]} 16. Nc3 {[%clk 0:02:19.1]} 16... Nxa2 {[%clk
0:02:50.5]} 17. Rxa2 {[%clk 0:02:21]} 17... Nc6 {[%clk 0:02:37.2]} 18. Nf3
{[%clk 0:01:55.7]} 18... Nxd4 {[%clk 0:02:24]} 19. Nxd4 {[%clk 0:01:49.7]} 19...
Bxd4 {[%clk 0:02:24.3]} 20. f5 {[%clk 0:01:42.3]} 20... Bxf2+ {[%clk 0:02:21.9]}
21. Kxf2 {[%clk 0:01:40.2]} 21... Qh2 {[%clk 0:02:17.3]} 22. Qg4 {[%clk
0:01:35.8]} 22... Rd2+ {[%clk 0:02:15.9]} 23. Ne2 {[%clk 0:01:36.8]} 23... Rxc2
{[%clk 0:02:12.4]} 24. Ra3 {[%clk 0:01:26.7]} 24... Bxg2 {[%clk 0:02:12.1]} 0-1

[Event "*** Titled Tuesday 3|2 Blitz"]
[Site "Chess.com"]
[Date "2016.07.05"]
[Round "6"]
[White "kpio91"]
[Black "Semetey"]
[Result "1-0"]
[WhiteElo "2553"]
[BlackElo "2445"]
[TimeControl "180+2"]
[EndTime "12:11:53 PDT"]
[Termination "kpio91 won by resignation"]

1. e4 {[%clk 0:03:01.3]} 1... g6 {[%clk 0:02:34.3]} 2. d4 {[%clk 0:02:58]} 2...
Bg7 {[%clk 0:02:34.7]} 3. Nf3 {[%clk 0:02:55]} 3... d6 {[%clk 0:02:35]} 4. Bc4
{[%clk 0:02:56.7]} 4... Nf6 {[%clk 0:02:36.2]} 5. Qe2 {[%clk 0:02:51.3]} 5...
O-O {[%clk 0:02:36.5]} 6. e5 {[%clk 0:02:52.6]} 6... dxe5 {[%clk 0:02:00.9]} 7.
dxe5 {[%clk 0:02:53.3]} 7... Nd5 {[%clk 0:02:02.5]} 8. h3 {[%clk 0:02:53.7]}
8... c6 {[%clk 0:02:02.6]} 9. O-O {[%clk 0:02:54.4]} 9... e6 {[%clk 0:01:48.9]}
10. Re1 {[%clk 0:02:42.7]} 10... Nd7 {[%clk 0:01:49.5]} 11. Bb3 {[%clk
0:02:32.6]} 11... Qc7 {[%clk 0:01:49.7]} 12. c4 {[%clk 0:02:27.3]} 12... Ne7
{[%clk 0:01:50.7]} 13. Nc3 {[%clk 0:02:28.2]} 13... a6 {[%clk 0:01:46.4]} 14.
Bg5 {[%clk 0:02:28.2]} 14... Nf5 {[%clk 0:01:45.4]} 15. g4 {[%clk 0:02:15.5]}
15... h6 {[%clk 0:01:42.3]} 16. gxf5 {[%clk 0:02:08]} 16... hxg5 {[%clk
0:01:43.2]} 17. f6 {[%clk 0:02:09.6]} 17... Bh6 {[%clk 0:01:44.4]} 18. Qe3
{[%clk 0:02:02.6]} 18... c5 {[%clk 0:01:38]} 19. h4 {[%clk 0:02:00.6]} 19... Rd8
{[%clk 0:01:29.9]} 20. hxg5 {[%clk 0:01:59.1]} 20... Bf8 {[%clk 0:01:30.8]} 21.
Bc2 {[%clk 0:01:51]} 21... b6 {[%clk 0:01:31.5]} 22. Kg2 {[%clk 0:01:51.7]}
22... Bb7 {[%clk 0:01:32]} 23. Be4 {[%clk 0:01:52.9]} 23... Rab8 {[%clk
0:01:19]} 24. Bxb7 {[%clk 0:01:52.6]} 24... Qxb7 {[%clk 0:01:20]} 25. Rh1 {[%clk
0:01:52.7]} 25... Nxe5 {[%clk 0:01:10.2]} 26. Qxe5 {[%clk 0:01:52.1]} 26... Rd3
{[%clk 0:01:11.8]} 27. Qe4 {[%clk 0:01:50.2]} 27... Qxe4 {[%clk 0:01:07]} 28.
Nxe4 {[%clk 0:01:51]} 28... b5 {[%clk 0:01:08.5]} 29. Rh4 {[%clk 0:01:50.7]}
29... bxc4 {[%clk 0:01:08.6]} 30. Rah1 {[%clk 0:01:51.7]} 30... Bg7 {[%clk
0:01:09.2]} 31. fxg7 {[%clk 0:01:45.9]} 1-0

[Event "*** Titled Tuesday 3|2 Blitz"]
[Site "Chess.com"]
[Date "2016.07.05"]
[Round "6"]
[White "RobertRis"]
[Black "AndreyOstrovskiy"]
[Result "0-1"]
[WhiteElo "2421"]
[BlackElo "2492"]
[TimeControl "180+2"]
[EndTime "12:12:59 PDT"]
[Termination "AndreyOstrovskiy won by resignation"]

1. Nf3 {[%clk 0:03:01.9]} 1... Nf6 {[%clk 0:03:00.5]} 2. g3 {[%clk 0:03:03.2]}
2... d5 {[%clk 0:03:00.9]} 3. Bg2 {[%clk 0:03:02.9]} 3... e6 {[%clk 0:03:02.3]}
4. c4 {[%clk 0:03:03.5]} 4... Be7 {[%clk 0:03:03.2]} 5. O-O {[%clk 0:03:03.9]}
5... O-O {[%clk 0:03:04.4]} 6. b3 {[%clk 0:03:05.2]} 6... b6 {[%clk 0:03:05.2]}
7. Bb2 {[%clk 0:03:06.2]} 7... Bb7 {[%clk 0:03:06.6]} 8. d4 {[%clk 0:03:06.5]}
8... Nbd7 {[%clk 0:03:07]} 9. Nc3 {[%clk 0:03:06.6]} 9... c5 {[%clk 0:03:00.4]}
10. cxd5 {[%clk 0:03:04.6]} 10... exd5 {[%clk 0:03:01]} 11. Rc1 {[%clk
0:03:02.2]} 11... Re8 {[%clk 0:02:55.5]} 12. Re1 {[%clk 0:02:58.4]} 12... Bf8
{[%clk 0:02:54]} 13. e3 {[%clk 0:02:56.1]} 13... a6 {[%clk 0:02:49.3]} 14. Qc2
{[%clk 0:02:50.6]} 14... Rc8 {[%clk 0:02:46.3]} 15. dxc5 {[%clk 0:02:46.5]}
15... bxc5 {[%clk 0:02:39.8]} 16. Red1 {[%clk 0:02:44.6]} 16... h6 {[%clk
0:02:16.7]} 17. Qf5 {[%clk 0:02:29.3]} 17... g6 {[%clk 0:02:13.3]} 18. Qf4
{[%clk 0:02:25.9]} 18... Bg7 {[%clk 0:02:09.8]} 19. Qa4 {[%clk 0:02:13.2]} 19...
a5 {[%clk 0:01:17.6]} 20. Qb5 {[%clk 0:02:04.7]} 20... Bc6 {[%clk 0:01:16.7]}
21. Qd3 {[%clk 0:02:03.4]} 21... Qb6 {[%clk 0:01:13.8]} 22. Qc2 {[%clk
0:02:00.2]} 22... d4 {[%clk 0:01:04.5]} 23. exd4 {[%clk 0:01:14.5]} 23... Bxf3
{[%clk 0:01:05]} 24. Bxf3 {[%clk 0:01:05]} 24... cxd4 {[%clk 0:01:06]} 25. Nd5
{[%clk 0:00:46.4]} 25... Rxc2 {[%clk 0:01:04.1]} 26. Nxb6 {[%clk 0:00:47.6]}
26... Rxb2 {[%clk 0:01:04.7]} 27. Nxd7 {[%clk 0:00:47.3]} 27... Nxd7 {[%clk
0:01:05.3]} 28. Rc7 {[%clk 0:00:48.4]} 28... Ne5 {[%clk 0:01:04.1]} 29. Bd5
{[%clk 0:00:49.7]} 29... Rd8 {[%clk 0:01:04.7]} 0-1

[Event "*** Titled Tuesday 3|2 Blitz"]
[Site "Chess.com"]
[Date "2016.07.05"]
[Round "6"]
[White "eltenedor"]
[Black "Saitama_Hero"]
[Result "1-0"]
[WhiteElo "2032"]
[BlackElo "2098"]
[TimeControl "180+2"]
[EndTime "12:13:12 PDT"]
[Termination "eltenedor won by resignation"]

1. c4 {[%clk 0:03:01.9]} 1... Nf6 {[%clk 0:03:00.1]} 2. g3 {[%clk 0:03:02.4]}
2... e6 {[%clk 0:03:01.2]} 3. Bg2 {[%clk 0:03:02.8]} 3... a6 {[%clk 0:03:02.9]}
4. d4 {[%clk 0:02:54.5]} 4... d5 {[%clk 0:02:59.1]} 5. b3 {[%clk 0:02:47.1]}
5... c5 {[%clk 0:02:47.4]} 6. cxd5 {[%clk 0:02:37.3]} 6... exd5 {[%clk
0:02:47.1]} 7. Nf3 {[%clk 0:02:37.3]} 7... cxd4 {[%clk 0:02:47]} 8. O-O {[%clk
0:02:36.7]} 8... Nc6 {[%clk 0:02:48.9]} 9. Bb2 {[%clk 0:02:30.8]} 9... Be7
{[%clk 0:02:47.2]} 10. Nxd4 {[%clk 0:02:31.4]} 10... O-O {[%clk 0:02:48.8]} 11.
Nd2 {[%clk 0:02:25.8]} 11... Re8 {[%clk 0:02:39]} 12. Nxc6 {[%clk 0:02:09.3]}
12... bxc6 {[%clk 0:02:39.2]} 13. e4 {[%clk 0:02:10.4]} 13... Bg4 {[%clk
0:02:37.1]} 14. Qc2 {[%clk 0:02:04.7]} 14... Rc8 {[%clk 0:02:29.4]} 15. e5
{[%clk 0:01:59.7]} 15... Nd7 {[%clk 0:02:29.4]} 16. Rfe1 {[%clk 0:01:51.9]}
16... Be6 {[%clk 0:02:21.1]} 17. f4 {[%clk 0:01:44.9]} 17... g6 {[%clk
0:02:20.8]} 18. Nf3 {[%clk 0:01:40.1]} 18... c5 {[%clk 0:02:21.3]} 19. h3 {[%clk
0:01:31.2]} 19... d4 {[%clk 0:02:18.5]} 20. g4 {[%clk 0:01:26]} 20... Nb6 {[%clk
0:02:14.6]} 21. f5 {[%clk 0:01:21.6]} 21... d3 {[%clk 0:02:03.6]} 22. Qc3 {[%clk
0:00:55.5]} 22... gxf5 {[%clk 0:01:55.8]} 23. gxf5 {[%clk 0:00:55.3]} 23... Bxf5
{[%clk 0:01:57.7]} 24. e6 {[%clk 0:00:48.5]} 24... f6 {[%clk 0:01:59.1]} 25. Nh4
{[%clk 0:00:37.7]} 25... Bg6 {[%clk 0:01:50.1]} 26. Rad1 {[%clk 0:00:29.1]}
26... c4 {[%clk 0:01:49.4]} 27. Nxg6 {[%clk 0:00:25.2]} 27... hxg6 {[%clk
0:01:49.1]} 28. bxc4 {[%clk 0:00:19.3]} 28... Nxc4 {[%clk 0:01:51]} 29. Rxd3
{[%clk 0:00:19.8]} 29... Qb6+ {[%clk 0:01:49.6]} 30. Qd4 {[%clk 0:00:17.9]}
30... Qxb2 {[%clk 0:01:49.8]} 31. Qg4 {[%clk 0:00:12.4]} 31... Kg7 {[%clk
0:01:48.2]} 32. Be4 {[%clk 0:00:10.2]} 32... Ne5 {[%clk 0:01:47.7]} 33. Qg3
{[%clk 0:00:08.2]} 33... Nxd3 {[%clk 0:01:46]} 34. Qxg6+ {[%clk 0:00:08.7]} 1-0

[Event "*** Titled Tuesday 3|2 Blitz"]
[Site "Chess.com"]
[Date "2016.07.05"]
[Round "6"]
[White "BellJackson95"]
[Black "oskariot"]
[Result "0-1"]
[WhiteElo "2187"]
[BlackElo "2269"]
[TimeControl "180+2"]
[EndTime "12:13:32 PDT"]
[Termination "oskariot won by resignation"]

1. e4 {[%clk 0:02:40.4]} 1... c5 {[%clk 0:03:01.9]} 2. Nf3 {[%clk 0:02:39.4]}
2... d6 {[%clk 0:03:00.2]} 3. d4 {[%clk 0:02:38.8]} 3... cxd4 {[%clk 0:03:00.4]}
4. Nxd4 {[%clk 0:02:40.7]} 4... Nf6 {[%clk 0:03:02.1]} 5. Nc3 {[%clk 0:02:42.1]}
5... Nc6 {[%clk 0:03:01.2]} 6. Bg5 {[%clk 0:02:40.9]} 6... Bd7 {[%clk
0:03:00.3]} 7. Be2 {[%clk 0:02:36.5]} 7... h6 {[%clk 0:02:53.8]} 8. Be3 {[%clk
0:02:35.5]} 8... e6 {[%clk 0:02:51.6]} 9. Nb3 {[%clk 0:02:29.8]} 9... Be7 {[%clk
0:02:50.3]} 10. O-O {[%clk 0:02:29.8]} 10... a6 {[%clk 0:02:50.3]} 11. f4 {[%clk
0:02:31]} 11... Qc7 {[%clk 0:02:51.5]} 12. f5 {[%clk 0:02:30]} 12... Ne5 {[%clk
0:02:48.4]} 13. fxe6 {[%clk 0:02:27.3]} 13... Bxe6 {[%clk 0:02:46.7]} 14. Nd4
{[%clk 0:02:27]} 14... O-O {[%clk 0:02:44.2]} 15. Nxe6 {[%clk 0:02:18.8]} 15...
fxe6 {[%clk 0:02:46.1]} 16. Bd4 {[%clk 0:02:14.8]} 16... Qc6 {[%clk 0:02:44.3]}
17. Bd3 {[%clk 0:01:53.3]} 17... Rad8 {[%clk 0:02:42.6]} 18. h3 {[%clk
0:01:50.2]} 18... Kh8 {[%clk 0:02:42.3]} 19. Qe1 {[%clk 0:01:39.7]} 19... Rd7
{[%clk 0:02:43]} 20. Rd1 {[%clk 0:01:38.2]} 20... Bd8 {[%clk 0:02:44]} 21. a4
{[%clk 0:01:26.3]} 21... Bb6 {[%clk 0:02:41.5]} 22. Qe3 {[%clk 0:01:23.7]} 22...
Bxd4 {[%clk 0:02:21.2]} 23. Qxd4 {[%clk 0:01:25.6]} 23... Qc5 {[%clk 0:02:20]}
24. Be2 {[%clk 0:01:06.9]} 24... Rc8 {[%clk 0:01:51.5]} 25. Kh2 {[%clk
0:01:01.1]} 25... Qxd4 {[%clk 0:01:48.7]} 26. Rxd4 {[%clk 0:01:01.8]} 26... Kg8
{[%clk 0:01:50.3]} 27. Rfd1 {[%clk 0:01:01.7]} 27... Rc6 {[%clk 0:01:51.3]} 28.
Bf3 {[%clk 0:00:44.2]} 28... Kf7 {[%clk 0:01:49.1]} 29. Kg3 {[%clk 0:00:42.3]}
29... Ke7 {[%clk 0:01:49.8]} 30. Kf2 {[%clk 0:00:41.3]} 30... Rdc7 {[%clk
0:01:30.3]} 31. Be2 {[%clk 0:00:37.8]} 31... Rb6 {[%clk 0:01:27.7]} 32. Bf3
{[%clk 0:00:11]} 32... Rxb2 {[%clk 0:01:25.5]} 33. Ne2 {[%clk 0:00:12.4]} 33...
Rcxc2 {[%clk 0:01:24.9]} 34. a5 {[%clk 0:00:11.9]} 34... Nxf3 {[%clk 0:01:25.6]}
35. Kxf3 {[%clk 0:00:13.2]} 35... Rxe2 {[%clk 0:01:26.6]} 36. Rxd6 {[%clk
0:00:14.8]} 36... Rf2+ {[%clk 0:01:28]} 37. Kg3 {[%clk 0:00:16.1]} 37... Rxg2+
{[%clk 0:01:29.3]} 38. Kh4 {[%clk 0:00:16.8]} 0-1

[Event "*** Titled Tuesday 3|2 Blitz"]
[Site "Chess.com"]
[Date "2016.07.05"]
[Round "6"]
[White "oggy1984"]
[Black "Aragon"]
[Result "1-0"]
[WhiteElo "2292"]
[BlackElo "2091"]
[TimeControl "180+2"]
[EndTime "12:13:46 PDT"]
[Termination "oggy1984 won by resignation"]

1. e4 {[%clk 0:03:01.9]} 1... e6 {[%clk 0:02:58.9]} 2. d3 {[%clk 0:03:01.7]}
2... c5 {[%clk 0:02:58.1]} 3. Nf3 {[%clk 0:03:01.7]} 3... Nc6 {[%clk 0:02:55.7]}
4. g3 {[%clk 0:03:02.5]} 4... d6 {[%clk 0:02:53.2]} 5. Bg2 {[%clk 0:03:03.1]}
5... g6 {[%clk 0:02:48.1]} 6. O-O {[%clk 0:03:03.7]} 6... Bg7 {[%clk 0:02:47.9]}
7. c3 {[%clk 0:03:04.5]} 7... e5 {[%clk 0:02:47.7]} 8. Nbd2 {[%clk 0:02:40.8]}
8... Nge7 {[%clk 0:02:36]} 9. a4 {[%clk 0:02:40.8]} 9... O-O {[%clk 0:02:26.9]}
10. Nc4 {[%clk 0:02:41.1]} 10... h6 {[%clk 0:02:20.6]} 11. Nfd2 {[%clk
0:02:22.8]} 11... g5 {[%clk 0:02:06.9]} 12. Ne3 {[%clk 0:02:21.7]} 12... Be6
{[%clk 0:02:01.8]} 13. Ndc4 {[%clk 0:02:14.8]} 13... Rb8 {[%clk 0:01:53.2]} 14.
f4 {[%clk 0:02:13.8]} 14... exf4 {[%clk 0:01:49.3]} 15. gxf4 {[%clk 0:02:14.6]}
15... gxf4 {[%clk 0:01:49.8]} 16. Rxf4 {[%clk 0:02:15.2]} 16... Ng6 {[%clk
0:01:51.4]} 17. Rf1 {[%clk 0:02:13.8]} 17... a6 {[%clk 0:01:49.8]} 18. a5 {[%clk
0:02:10.7]} 18... Nce5 {[%clk 0:01:46.2]} 19. Nf5 {[%clk 0:02:03]} 19... Nxc4
{[%clk 0:01:23.7]} 20. dxc4 {[%clk 0:02:00.9]} 20... Bxc4 {[%clk 0:01:22.8]} 21.
Rf2 {[%clk 0:01:51.3]} 21... Be5 {[%clk 0:00:53.8]} 22. Bxh6 {[%clk 0:01:45.9]}
22... b5 {[%clk 0:00:45.7]} 23. axb6 {[%clk 0:01:41.1]} 23... Rxb6 {[%clk
0:00:45.3]} 24. Bxf8 {[%clk 0:01:41.1]} 24... Kxf8 {[%clk 0:00:33.2]} 25. Qd2
{[%clk 0:01:41.2]} 25... Qf6 {[%clk 0:00:17.9]} 26. Qh6+ {[%clk 0:01:29.9]}
26... Ke8 {[%clk 0:00:15.8]} 27. Ne3 {[%clk 0:01:24.6]} 27... Qe6 {[%clk
0:00:13.8]} 28. Nd5 {[%clk 0:01:19]} 28... Bxd5 {[%clk 0:00:10.3]} 29. exd5
{[%clk 0:01:19.3]} 29... Qg4 {[%clk 0:00:12.2]} 30. Qh7 {[%clk 0:01:09.4]} 30...
Rb7 {[%clk 0:00:11.6]} 31. Qg8+ {[%clk 0:01:08.1]} 31... Kd7 {[%clk 0:00:11.5]}
32. Rxf7+ {[%clk 0:01:05.8]} 32... Ne7 {[%clk 0:00:10.9]} 33. Qxg4+ {[%clk
0:01:06.3]} 1-0